[Event "Late-Titled-Tuesday-Blitz-May-14-2024"]
[Site "Chess.com"]
[Date "2024.05.14"]
[Round "1"]
[White "Chessdude1987"]
[Black "Rital44"]
[Result "0-1"]
[WhiteElo "2380"]
[BlackElo "2707"]
[TimeControl "180+1"]
[EndTime "14:07:41 PDT"]
[Termination "Rital44 won on time"]

1. e4 {[%clk 0:03:00.9]} 1... c5 {[%clk 0:02:40.6]} 2. Nf3 {[%clk 0:03:00.2]}
2... Nc6 {[%clk 0:02:33.4]} 3. Bb5 {[%clk 0:03:00.1]} 3... g6 {[%clk 0:02:31]}
4. O-O {[%clk 0:02:56.2]} 4... Bg7 {[%clk 0:02:27.9]} 5. Re1 {[%clk 0:02:56.1]}
5... e5 {[%clk 0:02:22.4]} 6. b4 {[%clk 0:02:53.5]} 6... cxb4 {[%clk 0:02:01.1]}
7. a3 {[%clk 0:02:45.5]} 7... Nge7 {[%clk 0:01:56.9]} 8. axb4 {[%clk 0:02:34.6]}
8... O-O {[%clk 0:01:57.2]} 9. Bxc6 {[%clk 0:02:33.9]} 9... bxc6 {[%clk
0:01:53.9]} 10. Bb2 {[%clk 0:02:31.7]} 10... Qc7 {[%clk 0:01:51.4]} 11. Na3
{[%clk 0:02:29.8]} 11... Rb8 {[%clk 0:01:46.8]} 12. Bc3 {[%clk 0:02:28]} 12...
d6 {[%clk 0:01:31.6]} 13. Nc4 {[%clk 0:02:20.8]} 13... Be6 {[%clk 0:01:30.5]}
14. Na5 {[%clk 0:02:17.4]} 14... h6 {[%clk 0:01:26.5]} 15. d4 {[%clk 0:02:12.9]}
15... Rfd8 {[%clk 0:01:13]} 16. dxe5 {[%clk 0:02:09.2]} 16... dxe5 {[%clk
0:01:13.9]} 17. Qe2 {[%clk 0:02:08.3]} 17... c5 {[%clk 0:01:10.5]} 18. b5 {[%clk
0:02:02.6]} 18... c4 {[%clk 0:01:07]} 19. Nc6 {[%clk 0:01:54.9]} 19... Nxc6
{[%clk 0:01:05.5]} 20. bxc6 {[%clk 0:01:54.6]} 20... Qxc6 {[%clk 0:00:57.9]} 21.
Rxa7 {[%clk 0:01:48.2]} 21... Qc5 {[%clk 0:00:54.9]} 22. Ra5 {[%clk 0:01:40.7]}
22... Rb5 {[%clk 0:00:52.9]} 23. Rxb5 {[%clk 0:01:34.9]} 23... Qxb5 {[%clk
0:00:53.8]} 24. Rd1 {[%clk 0:01:20.5]} 24... Ra8 {[%clk 0:00:53.2]} 25. h3
{[%clk 0:01:06.4]} 25... Kh7 {[%clk 0:00:53.2]} 26. Qd2 {[%clk 0:01:01.8]} 26...
Ra3 {[%clk 0:00:48.1]} 27. Ra1 {[%clk 0:00:52.4]} 27... Rxa1+ {[%clk 0:00:45.6]}
28. Bxa1 {[%clk 0:00:52.4]} 28... Qb1+ {[%clk 0:00:46.3]} 29. Qe1 {[%clk
0:00:52.7]} 29... Qxc2 {[%clk 0:00:46.9]} 30. Nxe5 {[%clk 0:00:33.5]} 30... Qa2
{[%clk 0:00:44.9]} 31. f4 {[%clk 0:00:27]} 31... Qb3 {[%clk 0:00:30.5]} 32. Kh2
{[%clk 0:00:25.4]} 32... Bf8 {[%clk 0:00:21.3]} 33. Qc3 {[%clk 0:00:19.8]} 33...
Bb4 {[%clk 0:00:19.4]} 34. Qxb3 {[%clk 0:00:14.5]} 34... cxb3 {[%clk 0:00:20.3]}
35. Bb2 {[%clk 0:00:14.5]} 35... Bd2 {[%clk 0:00:20.3]} 36. Kg3 {[%clk
0:00:12.7]} 36... g5 {[%clk 0:00:21]} 37. f5 {[%clk 0:00:10.4]} 37... Bf4+
{[%clk 0:00:21]} 38. Kf3 {[%clk 0:00:10.3]} 38... Bxe5 {[%clk 0:00:19.7]} 39.
Bxe5 {[%clk 0:00:09.2]} 39... Bc4 {[%clk 0:00:20.6]} 40. Bb2 {[%clk 0:00:07.6]}
40... h5 {[%clk 0:00:20.7]} 41. g4 {[%clk 0:00:06.4]} 41... h4 {[%clk
0:00:20.9]} 42. e5 {[%clk 0:00:06.2]} 42... Bf1 {[%clk 0:00:21]} 43. e6 {[%clk
0:00:05.2]} 43... fxe6 {[%clk 0:00:21.7]} 44. fxe6 {[%clk 0:00:05]} 44... Kg6
{[%clk 0:00:22.3]} 45. e7 {[%clk 0:00:03.6]} 45... Kf7 {[%clk 0:00:22.7]} 46.
Ba3 {[%clk 0:00:03.8]} 46... Bxh3 {[%clk 0:00:22.5]} 47. Bb2 {[%clk 0:00:01.5]}
47... Kxe7 {[%clk 0:00:22]} 48. Ke4 {[%clk 0:00:00.6]} 48... Bxg4 {[%clk
0:00:21.6]} 49. Ke5 {[%clk 0:00:00.6]} 49... Be6 {[%clk 0:00:21.4]} 50. Ke4
{[%clk 0:00:00.3]} 50... Kf7 {[%clk 0:00:21.8]} 51. Ke5 {[%clk 0:00:00.3]} 51...
h3 {[%clk 0:00:22.4]} 52. Ke4 {[%clk 0:00:00.7]} 52... h2 {[%clk 0:00:23.3]} 0-1

[Event "Late-Titled-Tuesday-Blitz-May-14-2024"]
[Site "Chess.com"]
[Date "2024.05.14"]
[Round "1"]
[White "KorolDimitriy75"]
[Black "farzadbfd"]
[Result "0-1"]
[WhiteElo "2401"]
[BlackElo "2731"]
[TimeControl "180+1"]
[EndTime "14:07:44 PDT"]
[Termination "farzadbfd won on time"]

1. d4 {[%clk 0:03:00.9]} 1... Nf6 {[%clk 0:02:52.4]} 2. c4 {[%clk 0:03:00]} 2...
e6 {[%clk 0:02:52.7]} 3. Nc3 {[%clk 0:03:00.4]} 3... d5 {[%clk 0:02:52.9]} 4.
Bg5 {[%clk 0:03:00.1]} 4... Be7 {[%clk 0:02:53]} 5. cxd5 {[%clk 0:03:00.3]} 5...
exd5 {[%clk 0:02:53.2]} 6. e3 {[%clk 0:03:00.7]} 6... c6 {[%clk 0:02:53.8]} 7.
Bd3 {[%clk 0:03:00.8]} 7... O-O {[%clk 0:02:54.2]} 8. Qc2 {[%clk 0:03:01]} 8...
Nbd7 {[%clk 0:02:53.7]} 9. Nge2 {[%clk 0:03:00.7]} 9... Re8 {[%clk 0:02:54.1]}
10. f3 {[%clk 0:03:00.9]} 10... Nf8 {[%clk 0:02:54.6]} 11. O-O {[%clk
0:03:00.2]} 11... Nh5 {[%clk 0:02:54.5]} 12. Bxe7 {[%clk 0:02:59.5]} 12... Qxe7
{[%clk 0:02:55.4]} 13. e4 {[%clk 0:03:00.1]} 13... g6 {[%clk 0:02:41.4]} 14. e5
{[%clk 0:02:49.4]} 14... Ng7 {[%clk 0:02:40.6]} 15. f4 {[%clk 0:02:14.1]} 15...
Bf5 {[%clk 0:02:40.4]} 16. Ng3 {[%clk 0:02:13.5]} 16... Bxd3 {[%clk 0:02:19.1]}
17. Qxd3 {[%clk 0:02:14.4]} 17... f5 {[%clk 0:02:18.5]} 18. Rad1 {[%clk
0:01:55.2]} 18... Nfe6 {[%clk 0:02:10.2]} 19. Nge2 {[%clk 0:01:42.6]} 19... a5
{[%clk 0:02:01.8]} 20. h3 {[%clk 0:01:36.9]} 20... a4 {[%clk 0:01:53.1]} 21. a3
{[%clk 0:01:36.4]} 21... Rf8 {[%clk 0:01:47]} 22. Kh2 {[%clk 0:01:35]} 22... Qc7
{[%clk 0:01:45.6]} 23. g4 {[%clk 0:01:20.9]} 23... Qe7 {[%clk 0:01:19.6]} 24. g5
{[%clk 0:01:10.7]} 24... Nh5 {[%clk 0:01:17.2]} 25. Qe3 {[%clk 0:01:00.7]} 25...
Qc7 {[%clk 0:01:15.5]} 26. Ng3 {[%clk 0:00:58.3]} 26... Nxg3 {[%clk 0:01:13.5]}
27. Kxg3 {[%clk 0:00:59.2]} 27... Rfe8 {[%clk 0:01:13.9]} 28. h4 {[%clk
0:00:58.6]} 28... Ng7 {[%clk 0:01:14.5]} 29. Kg2 {[%clk 0:00:33.4]} 29... Qb6
{[%clk 0:01:14.8]} 30. Rd2 {[%clk 0:00:32.2]} 30... Ra5 {[%clk 0:01:10.8]} 31.
Rc1 {[%clk 0:00:18]} 31... Qb3 {[%clk 0:01:04.5]} 32. Rcc2 {[%clk 0:00:13.5]}
32... Ra6 {[%clk 0:00:58.7]} 33. Kf3 {[%clk 0:00:13.3]} 33... Qc4 {[%clk
0:00:51.1]} 34. Ne2 {[%clk 0:00:13]} 34... Qb5 {[%clk 0:00:39.6]} 35. Ng3 {[%clk
0:00:13]} 35... Rb6 {[%clk 0:00:35]} 36. Qd3 {[%clk 0:00:11.8]} 36... Qa5 {[%clk
0:00:21.6]} 37. h5 {[%clk 0:00:09.4]} 37... Kf7 {[%clk 0:00:15.6]} 38. Rc3
{[%clk 0:00:07.3]} 38... Rb5 {[%clk 0:00:13.7]} 39. Rh2 {[%clk 0:00:06.6]} 39...
Qb6 {[%clk 0:00:13.8]} 40. Rcc2 {[%clk 0:00:03.1]} 40... Rb3 {[%clk 0:00:14]}
41. Rc3 {[%clk 0:00:03.2]} 41... Rxb2 {[%clk 0:00:14.8]} 42. Rcc2 {[%clk
0:00:02.8]} 42... Rb3 {[%clk 0:00:14.8]} 43. Rc3 {[%clk 0:00:03.1]} 43... Ra8
{[%clk 0:00:09.2]} 44. hxg6+ {[%clk 0:00:01.9]} 44... hxg6 {[%clk 0:00:10.1]}
0-1

[Event "Late-Titled-Tuesday-Blitz-May-14-2024"]
[Site "Chess.com"]
[Date "2024.05.14"]
[Round "1"]
[White "picturesquecheck"]
[Black "Mops_2004"]
[Result "0-1"]
[WhiteElo "2456"]
[BlackElo "2826"]
[TimeControl "180+1"]
[EndTime "14:07:45 PDT"]
[Termination "Mops_2004 won by resignation"]

1. e4 {[%clk 0:03:00.9]} 1... g6 {[%clk 0:02:59]} 2. d4 {[%clk 0:02:57.2]} 2...
Bg7 {[%clk 0:02:59.3]} 3. Nc3 {[%clk 0:02:57.7]} 3... d6 {[%clk 0:02:59.6]} 4.
Nf3 {[%clk 0:02:57.4]} 4... a6 {[%clk 0:02:59.6]} 5. Be2 {[%clk 0:02:56.8]} 5...
Nf6 {[%clk 0:02:59.2]} 6. h3 {[%clk 0:02:55.5]} 6... O-O {[%clk 0:02:59.3]} 7.
Be3 {[%clk 0:02:55]} 7... b5 {[%clk 0:02:50.6]} 8. e5 {[%clk 0:02:46.5]} 8...
Nfd7 {[%clk 0:02:50.6]} 9. exd6 {[%clk 0:02:38.9]} 9... cxd6 {[%clk 0:02:50.3]}
10. O-O {[%clk 0:02:39.1]} 10... Bb7 {[%clk 0:02:49.5]} 11. a3 {[%clk
0:02:38.6]} 11... Nc6 {[%clk 0:02:48.4]} 12. Qd2 {[%clk 0:02:37.9]} 12... Rc8
{[%clk 0:02:34.9]} 13. Rad1 {[%clk 0:02:36.1]} 13... Na5 {[%clk 0:02:30.6]} 14.
Qc1 {[%clk 0:02:15.2]} 14... Nc4 {[%clk 0:02:26.1]} 15. Bxc4 {[%clk 0:02:15]}
15... Rxc4 {[%clk 0:02:25.8]} 16. Nd2 {[%clk 0:02:14.7]} 16... Rc7 {[%clk
0:02:22]} 17. Nb3 {[%clk 0:02:11.9]} 17... Qa8 {[%clk 0:02:19.8]} 18. f3 {[%clk
0:02:01.7]} 18... Re8 {[%clk 0:02:13]} 19. Bh6 {[%clk 0:02:00.8]} 19... Bh8
{[%clk 0:02:13]} 20. Rfe1 {[%clk 0:01:57.5]} 20... Nb6 {[%clk 0:02:09.3]} 21.
Na5 {[%clk 0:01:48.2]} 21... Nd5 {[%clk 0:01:58.3]} 22. Nxb7 {[%clk 0:01:38.6]}
22... Qxb7 {[%clk 0:01:50.6]} 23. Nxd5 {[%clk 0:01:36.5]} 23... Qxd5 {[%clk
0:01:50.8]} 24. c3 {[%clk 0:01:36.7]} 24... Bf6 {[%clk 0:01:45]} 25. Qd2 {[%clk
0:01:30.9]} 25... a5 {[%clk 0:01:44.7]} 26. Re4 {[%clk 0:01:22.8]} 26... Rb8
{[%clk 0:01:42.3]} 27. Rg4 {[%clk 0:01:03.8]} 27... b4 {[%clk 0:01:39.9]} 28.
axb4 {[%clk 0:01:03.3]} 28... axb4 {[%clk 0:01:39.8]} 29. Bg5 {[%clk 0:01:03.9]}
29... h5 {[%clk 0:01:27.6]} 30. Rg3 {[%clk 0:01:00.4]} 30... Bg7 {[%clk
0:01:14.3]} 31. f4 {[%clk 0:00:56.5]} 31... e6 {[%clk 0:01:06.1]} 32. Kh2 {[%clk
0:00:41.2]} 32... bxc3 {[%clk 0:01:05.5]} 33. bxc3 {[%clk 0:00:41.6]} 33... Rbc8
{[%clk 0:01:04.3]} 34. Rc1 {[%clk 0:00:33.6]} 34... Rc4 {[%clk 0:00:56.7]} 35.
Qe2 {[%clk 0:00:32.1]} 35... Qf5 {[%clk 0:00:39.4]} 36. Ra1 {[%clk 0:00:10.8]}
36... Kh7 {[%clk 0:00:20.8]} 37. Ra7 {[%clk 0:00:09.9]} 37... Rxc3 {[%clk
0:00:19.5]} 38. Rxc3 {[%clk 0:00:09.8]} 38... Rxc3 {[%clk 0:00:20.4]} 39. Qd2
{[%clk 0:00:09.1]} 39... Rc8 {[%clk 0:00:16.9]} 40. Rd7 {[%clk 0:00:07.6]} 40...
d5 {[%clk 0:00:16.3]} 41. Qe2 {[%clk 0:00:07.3]} 41... Kg8 {[%clk 0:00:14.8]}
42. Qe3 {[%clk 0:00:06.6]} 42... Qe4 {[%clk 0:00:10.6]} 43. Qxe4 {[%clk
0:00:05.9]} 43... dxe4 {[%clk 0:00:11.5]} 44. Bh4 {[%clk 0:00:06.5]} 44... e3
{[%clk 0:00:09.1]} 45. Kg1 {[%clk 0:00:07]} 45... Rc1+ {[%clk 0:00:08.3]} 46.
Kh2 {[%clk 0:00:07.4]} 46... e2 {[%clk 0:00:08.9]} 47. d5 {[%clk 0:00:07.4]}
47... exd5 {[%clk 0:00:08.6]} 48. Re7 {[%clk 0:00:06.3]} 48... Rc2 {[%clk
0:00:08.5]} 0-1

[Event "Late-Titled-Tuesday-Blitz-May-14-2024"]
[Site "Chess.com"]
[Date "2024.05.14"]
[Round "1"]
[White "FaustinoOro"]
[Black "JM05C"]
[Result "1-0"]
[WhiteElo "2921"]
[BlackElo "2519"]
[TimeControl "180+1"]
[EndTime "14:07:46 PDT"]
[Termination "FaustinoOro won by resignation"]

1. Nf3 {[%clk 0:03:00.9]} 1... Nf6 {[%clk 0:02:59.5]} 2. b3 {[%clk 0:03:00.7]}
2... d5 {[%clk 0:02:58.4]} 3. Bb2 {[%clk 0:03:01.3]} 3... e6 {[%clk 0:02:59]} 4.
e3 {[%clk 0:03:01.3]} 4... Bd6 {[%clk 0:02:58.7]} 5. d4 {[%clk 0:03:00.5]} 5...
O-O {[%clk 0:02:58.8]} 6. Bd3 {[%clk 0:03:00.4]} 6... c6 {[%clk 0:02:59.1]} 7.
O-O {[%clk 0:03:00.2]} 7... Nbd7 {[%clk 0:02:59.6]} 8. Nbd2 {[%clk 0:03:00.3]}
8... Qc7 {[%clk 0:02:58.8]} 9. c4 {[%clk 0:02:57.1]} 9... e5 {[%clk 0:02:57.6]}
10. cxd5 {[%clk 0:02:55.3]} 10... cxd5 {[%clk 0:02:48.7]} 11. Rc1 {[%clk
0:02:51.8]} 11... Qb8 {[%clk 0:02:48.7]} 12. dxe5 {[%clk 0:02:49.7]} 12... Nxe5
{[%clk 0:02:49.6]} 13. Nxe5 {[%clk 0:02:50]} 13... Bxe5 {[%clk 0:02:50.5]} 14.
Bxe5 {[%clk 0:02:50.2]} 14... Qxe5 {[%clk 0:02:51.4]} 15. Nf3 {[%clk 0:02:50.9]}
15... Qh5 {[%clk 0:02:50.8]} 16. h3 {[%clk 0:02:46.4]} 16... Be6 {[%clk
0:02:19.6]} 17. Rc7 {[%clk 0:02:43]} 17... Rab8 {[%clk 0:02:18.9]} 18. Nd4
{[%clk 0:02:34.7]} 18... Qe5 {[%clk 0:02:17.1]} 19. Rc1 {[%clk 0:02:28.6]} 19...
Rbc8 {[%clk 0:02:15.4]} 20. Qe2 {[%clk 0:02:22.9]} 20... Ne4 {[%clk 0:02:12.3]}
21. Bxe4 {[%clk 0:02:14.4]} 21... dxe4 {[%clk 0:02:11.9]} 22. Rfd1 {[%clk
0:02:14.3]} 22... h6 {[%clk 0:01:58.4]} 23. Qb5 {[%clk 0:01:59.6]} 23... Qxb5
{[%clk 0:01:17.7]} 24. Nxb5 {[%clk 0:01:58.7]} 24... Rfd8 {[%clk 0:01:18.1]} 25.
Rxd8+ {[%clk 0:01:35.6]} 25... Rxd8 {[%clk 0:01:18.1]} 26. Nd4 {[%clk
0:01:31.5]} 26... Bd5 {[%clk 0:01:06.5]} 27. Rc7 {[%clk 0:01:29.5]} 27... g6
{[%clk 0:01:04.8]} 28. Kf1 {[%clk 0:01:26.1]} 28... Kf8 {[%clk 0:01:04.4]} 29.
Ke2 {[%clk 0:01:26]} 29... Ke8 {[%clk 0:01:03.7]} 30. a4 {[%clk 0:01:19.5]}
30... Rd7 {[%clk 0:01:02.6]} 31. Rc8+ {[%clk 0:01:18.4]} 31... Rd8 {[%clk
0:01:02.5]} 32. Rc5 {[%clk 0:01:16.7]} 32... b6 {[%clk 0:00:58.3]} 33. Rc3
{[%clk 0:01:16.5]} 33... a6 {[%clk 0:00:54]} 34. b4 {[%clk 0:01:15.8]} 34... Kd7
{[%clk 0:00:52.9]} 35. Kd2 {[%clk 0:00:54.8]} 35... Rc8 {[%clk 0:00:49.1]} 36.
Ne2 {[%clk 0:00:51.8]} 36... Rd8 {[%clk 0:00:34.5]} 37. Kc2 {[%clk 0:00:46.6]}
37... f5 {[%clk 0:00:28.3]} 38. Kd2 {[%clk 0:00:36.8]} 38... Ke6 {[%clk
0:00:27.9]} 39. Rc7 {[%clk 0:00:34.7]} 39... Rd7 {[%clk 0:00:26.1]} 40. Nd4+
{[%clk 0:00:34]} 40... Kd6 {[%clk 0:00:26.4]} 41. Rc8 {[%clk 0:00:34.3]} 41...
Rc7 {[%clk 0:00:21.3]} 42. Rd8+ {[%clk 0:00:33.1]} 42... Rd7 {[%clk 0:00:21.4]}
43. Rb8 {[%clk 0:00:31.9]} 43... Kc7 {[%clk 0:00:21.4]} 44. Rh8 {[%clk 0:00:31]}
44... h5 {[%clk 0:00:21.1]} 45. Rh6 {[%clk 0:00:30.9]} 45... Bf7 {[%clk
0:00:17.2]} 46. h4 {[%clk 0:00:28.7]} 46... Kd6 {[%clk 0:00:16.8]} 47. Nxf5+
{[%clk 0:00:27]} 47... Ke5+ {[%clk 0:00:17.2]} 48. Nd4 {[%clk 0:00:27.6]} 48...
Rd8 {[%clk 0:00:15]} 49. Rh7 {[%clk 0:00:17.9]} 49... Kf6 {[%clk 0:00:15.3]} 50.
f4 {[%clk 0:00:17.6]} 50... Rd7 {[%clk 0:00:08.1]} 51. Rh8 {[%clk 0:00:17.1]}
51... Rc7 {[%clk 0:00:06.4]} 52. Rb8 {[%clk 0:00:16.5]} 52... Bc4 {[%clk
0:00:06.9]} 53. Rxb6+ {[%clk 0:00:16.7]} 1-0

[Event "Late-Titled-Tuesday-Blitz-May-14-2024"]
[Site "Chess.com"]
[Date "2024.05.14"]
[Round "1"]
[White "MKlose11"]
[Black "hsd2016"]
[Result "1-0"]
[WhiteElo "2637"]
[BlackElo "2320"]
[TimeControl "180+1"]
[EndTime "14:07:47 PDT"]
[Termination "MKlose11 won on time"]

1. e4 {[%clk 0:02:55.1]} 1... c5 {[%clk 0:02:58.3]} 2. Nc3 {[%clk 0:02:54.6]}
2... d6 {[%clk 0:02:57.4]} 3. d3 {[%clk 0:02:55]} 3... Nc6 {[%clk 0:02:56.3]} 4.
g3 {[%clk 0:02:55.4]} 4... g6 {[%clk 0:02:54.1]} 5. Bg2 {[%clk 0:02:55.7]} 5...
Bg7 {[%clk 0:02:55]} 6. Be3 {[%clk 0:02:55.7]} 6... e6 {[%clk 0:02:55.6]} 7. Qd2
{[%clk 0:02:56.1]} 7... Nge7 {[%clk 0:02:55.8]} 8. Bh6 {[%clk 0:02:56.1]} 8...
O-O {[%clk 0:02:55.8]} 9. h4 {[%clk 0:02:56.3]} 9... b5 {[%clk 0:02:50.4]} 10.
h5 {[%clk 0:02:56.1]} 10... b4 {[%clk 0:02:49.7]} 11. Nd1 {[%clk 0:02:53.7]}
11... e5 {[%clk 0:02:19.7]} 12. hxg6 {[%clk 0:02:51.7]} 12... Nxg6 {[%clk
0:02:18.9]} 13. Bxg7 {[%clk 0:02:51.9]} 13... Kxg7 {[%clk 0:02:19.8]} 14. Qh6+
{[%clk 0:02:52.4]} 14... Kf6 {[%clk 0:02:20.5]} 15. Ne3 {[%clk 0:02:49.7]} 15...
Be6 {[%clk 0:02:20.1]} 16. Bh3 {[%clk 0:02:41]} 16... Qa5 {[%clk 0:02:17.1]} 17.
Bxe6 {[%clk 0:02:39.3]} 17... fxe6 {[%clk 0:02:18]} 18. Ng4+ {[%clk 0:02:04.7]}
18... Ke7 {[%clk 0:02:16.8]} 19. Qxh7+ {[%clk 0:02:05]} 19... Rf7 {[%clk
0:02:17.5]} 20. Qxg6 {[%clk 0:02:04.6]} 20... b3+ {[%clk 0:02:18.1]} 21. c3
{[%clk 0:02:03.4]} 21... Nd4 {[%clk 0:02:10.9]} 22. Rh7 {[%clk 0:01:48.7]} 22...
Rf8 {[%clk 0:02:09.7]} 23. Qg5+ {[%clk 0:01:43.1]} 23... Kd7 {[%clk 0:02:09]}
24. Rxf7+ {[%clk 0:01:36.7]} 24... Rxf7 {[%clk 0:02:09.9]} 25. Qg8 {[%clk
0:01:37]} 25... Re7 {[%clk 0:01:05.4]} 26. Nf6+ {[%clk 0:01:28.8]} 26... Kc6
{[%clk 0:01:01]} 27. Qa8+ {[%clk 0:01:19.6]} 27... Rb7 {[%clk 0:00:58.4]} 28. a3
{[%clk 0:01:10.8]} 28... Nc2+ {[%clk 0:00:50.5]} 29. Kd2 {[%clk 0:01:09.5]}
29... Nxa1 {[%clk 0:00:51.4]} 30. Qe8+ {[%clk 0:01:09.3]} 30... Kb6 {[%clk
0:00:49.4]} 31. Nd7+ {[%clk 0:01:04.3]} 31... Kc7 {[%clk 0:00:34.6]} 32. Nf8
{[%clk 0:00:58.7]} 32... Nc2 {[%clk 0:00:17.5]} 33. Qd7+ {[%clk 0:00:35.7]}
33... Kb8 {[%clk 0:00:13.4]} 34. Qe8+ {[%clk 0:00:33.7]} 34... Kc7 {[%clk
0:00:12.7]} 35. Qd7+ {[%clk 0:00:33.7]} 35... Kb8 {[%clk 0:00:12.4]} 36. Qxd6+
{[%clk 0:00:34.4]} 36... Qc7 {[%clk 0:00:11.7]} 37. Qxe6 {[%clk 0:00:29.5]}
37... Nxa3 {[%clk 0:00:09]} 38. Qe8+ {[%clk 0:00:26]} 38... Qc8 {[%clk 0:00:09]}
39. Qxe5+ {[%clk 0:00:24]} 39... Ka8 {[%clk 0:00:09.6]} 40. Ne6 {[%clk
0:00:20.7]} 40... Nb1+ {[%clk 0:00:07.8]} 41. Kc1 {[%clk 0:00:19.2]} 41... Na3
{[%clk 0:00:07.1]} 42. bxa3 {[%clk 0:00:15.4]} 42... b2+ {[%clk 0:00:05.8]} 43.
Kb1 {[%clk 0:00:15.9]} 43... a6 {[%clk 0:00:06.2]} 44. Ne2 {[%clk 0:00:14.7]}
44... Qc6 {[%clk 0:00:05.9]} 45. Nd8 {[%clk 0:00:11.9]} 45... Qb5 {[%clk
0:00:03.2]} 46. Qd5 {[%clk 0:00:09.2]} 1-0

[Event "Late-Titled-Tuesday-Blitz-May-14-2024"]
[Site "Chess.com"]
[Date "2024.05.14"]
[Round "1"]
[White "HandKnit"]
[Black "OK97"]
[Result "1/2-1/2"]
[WhiteElo "2507"]
[BlackElo "2884"]
[TimeControl "180+1"]
[EndTime "14:07:49 PDT"]
[Termination "Game drawn by repetition"]

1. c4 {[%clk 0:03:00.9]} 1... e6 {[%clk 0:02:55.3]} 2. Nf3 {[%clk 0:02:59.2]}
2... d5 {[%clk 0:02:55.6]} 3. g3 {[%clk 0:02:59.3]} 3... d4 {[%clk 0:02:50.8]}
4. Bg2 {[%clk 0:02:58.5]} 4... Nc6 {[%clk 0:02:50.8]} 5. e3 {[%clk 0:02:58.4]}
5... Nf6 {[%clk 0:02:45.3]} 6. O-O {[%clk 0:02:57.5]} 6... e5 {[%clk 0:02:45.7]}
7. exd4 {[%clk 0:02:57.4]} 7... e4 {[%clk 0:02:46.2]} 8. Re1 {[%clk 0:02:56.6]}
8... Be7 {[%clk 0:02:45.5]} 9. Ng5 {[%clk 0:02:51.9]} 9... Nxd4 {[%clk
0:02:43.6]} 10. Nxe4 {[%clk 0:02:46]} 10... Nxe4 {[%clk 0:02:43.8]} 11. Bxe4
{[%clk 0:02:45.8]} 11... h5 {[%clk 0:02:44.4]} 12. Nc3 {[%clk 0:02:28.3]} 12...
c6 {[%clk 0:02:40.3]} 13. d3 {[%clk 0:02:27.4]} 13... Bg4 {[%clk 0:02:35.5]} 14.
f3 {[%clk 0:02:27.2]} 14... Be6 {[%clk 0:02:35.6]} 15. f4 {[%clk 0:02:19.2]}
15... Bg4 {[%clk 0:02:31.3]} 16. Qd2 {[%clk 0:02:19.2]} 16... f5 {[%clk
0:02:21.8]} 17. Bg2 {[%clk 0:02:18.2]} 17... h4 {[%clk 0:02:20.7]} 18. b3 {[%clk
0:02:14.9]} 18... hxg3 {[%clk 0:02:15.4]} 19. Ba3 {[%clk 0:02:07.6]} 19... Nf3+
{[%clk 0:01:16.2]} 20. Bxf3 {[%clk 0:02:06.3]} 20... Qd4+ {[%clk 0:00:55.4]} 21.
Qe3 {[%clk 0:01:45.8]} 21... Qxe3+ {[%clk 0:00:28.2]} 22. Rxe3 {[%clk 0:01:45]}
22... Bxf3 {[%clk 0:00:28.8]} 23. Rxe7+ {[%clk 0:01:30.7]} 23... Kd8 {[%clk
0:00:29]} 24. hxg3 {[%clk 0:01:17.7]} 24... Rh1+ {[%clk 0:00:28]} 25. Kf2 {[%clk
0:01:17.7]} 25... Rxa1 {[%clk 0:00:28.5]} 26. Kxf3 {[%clk 0:01:18.1]} 26... Rc8
{[%clk 0:00:15.9]} 27. Rxg7 {[%clk 0:01:14.2]} 27... Rc7 {[%clk 0:00:16.4]} 28.
Rg8+ {[%clk 0:01:01.3]} 28... Kd7 {[%clk 0:00:16.5]} 29. Bc5 {[%clk 0:01:01.6]}
29... b6 {[%clk 0:00:15]} 30. Bd4 {[%clk 0:01:01.3]} 30... Rc1 {[%clk
0:00:12.4]} 31. Be5 {[%clk 0:00:59.1]} 31... Rc8 {[%clk 0:00:12.6]} 32. Rg7+
{[%clk 0:00:59.2]} 32... Ke6 {[%clk 0:00:12]} 33. Rg6+ {[%clk 0:00:57.4]} 33...
Kd7 {[%clk 0:00:10.8]} 34. Rf6 {[%clk 0:00:57]} 34... Rg8 {[%clk 0:00:09.7]} 35.
Rxf5 {[%clk 0:00:55.7]} 35... Rf1+ {[%clk 0:00:09.8]} 36. Kg2 {[%clk 0:00:55]}
36... Re1 {[%clk 0:00:04.8]} 37. Rf7+ {[%clk 0:00:54.6]} 37... Ke6 {[%clk
0:00:04.7]} 38. Rxa7 {[%clk 0:00:54.8]} 38... Re3 {[%clk 0:00:04.7]} 39. Ne4
{[%clk 0:00:53.7]} 39... Rxd3 {[%clk 0:00:05]} 40. Rc7 {[%clk 0:00:50.3]} 40...
c5 {[%clk 0:00:04.7]} 41. Rc6+ {[%clk 0:00:48]} 41... Kf5 {[%clk 0:00:05.3]} 42.
Ng5 {[%clk 0:00:40]} 42... Kg4 {[%clk 0:00:04.7]} 43. Rd6 {[%clk 0:00:36.9]}
43... Rxg3+ {[%clk 0:00:04.2]} 44. Kf2 {[%clk 0:00:36.2]} 44... Ra8 {[%clk
0:00:03.9]} 45. a4 {[%clk 0:00:23]} 45... Rxb3 {[%clk 0:00:03.4]} 46. Ne4 {[%clk
0:00:20.6]} 46... Rb2+ {[%clk 0:00:03.4]} 47. Ke3 {[%clk 0:00:17.8]} 47... Rb3+
{[%clk 0:00:03.7]} 48. Kd2 {[%clk 0:00:16.9]} 48... Rxa4 {[%clk 0:00:03.4]} 49.
Nc3 {[%clk 0:00:16]} 49... Rb2+ {[%clk 0:00:03.1]} 50. Kd3 {[%clk 0:00:16.3]}
50... Rab4 {[%clk 0:00:03]} 51. Rg6+ {[%clk 0:00:15]} 51... Kf5 {[%clk
0:00:03.1]} 52. Rf6+ {[%clk 0:00:15.3]} 52... Kg4 {[%clk 0:00:03.5]} 53. Rg6+
{[%clk 0:00:15.6]} 53... Kf5 {[%clk 0:00:04.1]} 54. Rf6+ {[%clk 0:00:15.8]}
54... Kg4 {[%clk 0:00:04.6]} 55. Rg6+ {[%clk 0:00:14.8]} 1/2-1/2